fUST/lending_fUST_20250221
["ID","MTS","AMOUNT","RATE_DAILY","PERIOD"]
[353907259,1740127839318,-500.0,0.00013698,2]
[353907260,1740127839327,-1119.13,0.00013698,2]
[353907261,1740127839337,-500.0,0.00013698,2]
[353907262,1740127839349,-502.16275312,0.00013698,2]
[353907263,1740127839359,-420.27762552,0.00013698,2]
[353907264,1740127839369,-8546.65,0.00013698,2]
[353907265,1740127839379,-1790.87,0.00013698,2]
[353907266,1740127839389,-503.81,0.00013698,2]
[353907267,1740127839399,-500.0,0.00013698,2]
[353907268,1740127839409,-501.28319538,0.00013698,2]
[353907269,1740127839419,-500.0,0.00013698,2]
[353907270,1740127839429,-3281.57,0.00013698,2]
[353907271,1740127839439,-1004.85,0.00013698,2]
[353907272,1740127839449,-526.29,0.00013698,2]
[353907273,1740127839459,-628.65,0.00013698,2]
[353907274,1740127839470,-16024.69,0.00013698,2]
[353907275,1740127839480,-2328.46,0.00013698,2]
[353907276,1740127839489,-500.0,0.00013698,2]
[353907277,1740127839499,-500.0,0.00013698,2]
[353907278,1740127839508,-500.0,0.00013698,2]
[353907279,1740127839518,-1690.02,0.00013698,2]
[353907280,1740127839528,-830.91,0.00013698,2]
[353907281,1740127839538,-502.19702483,0.00013698,2]
[353907282,1740127839547,-828.18,0.00013698,2]
[353907283,1740127839557,-500.0,0.00013698,2]
[353907284,1740127839567,-984.04,0.00013698,2]
[353907285,1740127839577,-1021.08,0.00013698,2]
[353907286,1740127839586,-574.97,0.00013698,2]
[353907287,1740127839596,-689.34,0.00013698,2]
[353907288,1740127839606,-500.0,0.00013698,2]
[353907289,1740127839617,-1733.86,0.00013698,2]
[353907290,1740127839626,-500.0,0.00013698,2]
[353907291,1740127839636,-1095.73,0.00013698,2]
[353907292,1740127839646,-500.0,0.00013698,2]
[353907293,1740127839655,-500.0,0.00013698,2]
[353907294,1740127839665,-500.0,0.00013698,2]
[353907295,1740127839674,-500.0,0.00013698,2]
[353907296,1740127839684,-6723.17,0.00013698,2]
[353907297,1740127839693,-500.0,0.00013698,2]
[353907298,1740127839704,-963.38,0.00013698,2]
[353907299,1740127839714,-500.0,0.00013698,2]
[353907300,1740127839724,-579.548955,0.00013699,2]
[353907301,1740127839733,-311.786773,0.00013699,2]
[353907302,1740127839743,-500.0,0.0001378,2]
[353907303,1740127839753,-500.0,0.0001378,2]
[353907304,1740127839762,-510.83285161,0.0001378,2]
[353907305,1740127839772,-504.72208563,0.0001378,2]
[353907306,1740127839782,-500.0,0.0001378,2]
[353907307,1740127839792,-500.0,0.0001378,2]
[353907308,1740127839801,-528.37286133,0.0001378,2]
[353907309,1740127839811,-646.93714611,0.0001378,2]
[353907310,1740127839821,-500.0,0.0001378,2]
[353907311,1740127839831,-500.0,0.0001378,2]
[353907312,1740127839840,-254.60988222,0.0001378,2]
[353907313,1740127839851,-502.28225715,0.0001378,2]
[353907314,1740127839861,-503.77978048,0.0001378,2]
[353907315,1740127839871,-500.0,0.0001378,2]
[353907316,1740127839880,-500.0,0.0001378,2]
[353907317,1740127839890,-500.0,0.0001378,2]
[353907318,1740127839900,-724.4,0.0001378,2]
[353907319,1740127839909,-500.0,0.0001378,2]
[353907321,1740127839919,-500.0,0.0001378,2]
[353907322,1740127839928,-500.0,0.0001378,2]
[353907324,1740127839938,-514.31133253,0.0001378,2]
[353907326,1740127839947,-505.07,0.0001378,2]
[353907327,1740127839958,-500.0,0.0001378,2]
[353907328,1740127839968,-500.0,0.0001378,2]
[353907329,1740127839977,-500.0,0.0001378,2]
[353907330,1740127839987,-519.05,0.0001378,2]
[353907331,1740127839996,-500.0,0.0001378,2]
[353907332,1740127840006,-500.0,0.0001378,2]
[353907333,1740127840015,-500.0,0.0001378,2]
[353907334,1740127840025,-500.0,0.0001378,2]
[353907335,1740127840035,-500.0,0.0001378,2]
[353907336,1740127840044,-500.0,0.0001378,2]
[353907338,1740127840196,-547.31634246,0.0001378,2]
[353907339,1740127840208,-439.94796735,0.0001378,2]
[353907340,1740127840217,-530.67,0.0001378,2]
[353907341,1740127840227,-500.0,0.0001378,2]
[353907342,1740127840237,-268.90884737,0.0001378,2]
[353907343,1740127840246,-500.0,0.0001378,2]
[353907344,1740127840255,-500.0,0.0001378,2]
[353907345,1740127840265,-3582.22,0.0001378,2]
[353907346,1740127840279,-500.0,0.0001378,2]
[353907347,1740127840288,-750.62,0.0001378,2]
[353907348,1740127840297,-500.0,0.0001378,2]
[353907349,1740127840307,-512.34563179,0.0001378,2]
[353907351,1740127840317,-500.0,0.0001378,2]
[353907352,1740127840326,-500.0,0.0001378,2]
[353907354,1740127840335,-838.22,0.0001378,2]
[353907356,1740127840344,-500.0,0.0001378,2]
[353907358,1740127840355,-500.0,0.0001378,2]
[353907360,1740127840365,-1697.99,0.0001378,2]
[353907361,1740127840374,-4234.78,0.0001378,2]
[353907362,1740127840383,-893.66,0.0001378,2]
[353907363,1740127840392,-978.64,0.0001378,2]
[353907365,1740127840401,-500.0,0.0001378,2]
[353907366,1740127840410,-728.98,0.0001378,2]
[353907367,1740127840419,-1944.34,0.0001378,2]
[353907368,1740127840428,-500.0,0.0001378,2]
[353907369,1740127840437,-500.0,0.0001378,2]
[353907370,1740127840446,-500.0,0.0001378,2]
[353907371,1740127840455,-1119.13,0.0001378,2]
[353907372,1740127840464,-500.0,0.0001378,2]
[353907373,1740127840473,-8546.65,0.0001378,2]
[353907374,1740127840482,-1790.87,0.0001378,2]
[353907375,1740127840491,-503.81,0.0001378,2]
[353907376,1740127840500,-503.7363813,0.0001378,2]
[353907377,1740127840509,-500.0,0.0001378,2]
[353907378,1740127840518,-3281.57,0.0001378,2]
[353907379,1740127840527,-1004.85,0.0001378,2]
[353907380,1740127840536,-526.29,0.0001378,2]
[353907381,1740127840545,-628.65,0.0001378,2]
[353907382,1740127840554,-16024.69,0.0001378,2]
[353907383,1740127840563,-2328.46,0.0001378,2]
[353907384,1740127840572,-500.0,0.0001378,2]
[353907385,1740127840582,-500.0,0.0001378,2]
[353907386,1740127840591,-503.7819383,0.0001378,2]
[353907387,1740127840600,-1690.02,0.0001378,2]
[353907388,1740127840609,-830.91,0.0001378,2]
[353907389,1740127840617,-828.18,0.0001378,2]
[353907390,1740127840627,-505.8582618,0.0001378,2]
[353907391,1740127840636,-984.04,0.0001378,2]
[353907392,1740127840645,-1021.08,0.0001378,2]
[353907393,1740127840655,-574.97,0.0001378,2]
[353907394,1740127840664,-689.34,0.0001378,2]
[353907395,1740127840673,-1733.86,0.0001378,2]
[353907396,1740127840683,-500.0,0.0001378,2]
[353907397,1740127840692,-1095.73,0.0001378,2]
[353907398,1740127840701,-500.0,0.0001378,2]
[353907399,1740127840711,-500.0,0.0001378,2]
[353907400,1740127840720,-500.0,0.0001378,2]
[353907401,1740127840729,-6723.17,0.0001378,2]
[353907402,1740127840739,-500.0,0.0001378,2]
[353907403,1740127840747,-963.38,0.0001378,2]
[353907404,1740127840756,-12775.38683309,0.00013795,2]
[353907405,1740127840765,-3000.0,0.00013845,2]
[353907406,1740127840774,-3000.0,0.00013845,2]
[353907407,1740127840783,-567.56828944,0.00013863,2]
[353907408,1740127840792,-500.0,0.00013863,2]
[353907409,1740127840801,-500.0,0.00013863,2]
[353907410,1740127840811,-500.0,0.00013863,2]
[353907411,1740127840819,-500.0,0.00013863,2]
[353907412,1740127840828,-505.95704703,0.00013863,2]
[353907413,1740127840837,-331.8708533,0.00013863,2]
[353907414,1740127840846,-500.0,0.00013863,2]
[353907415,1740127840855,-500.0,0.00013863,2]
[353907416,1740127840864,-724.4,0.00013863,2]
[353907417,1740127840873,-500.0,0.00013863,2]
[353907418,1740127840882,-500.0,0.00013863,2]
[353907419,1740127840891,-312.56967895,0.00013863,2]
[353907420,1740127840900,-505.07,0.00013863,2]
[353907421,1740127840909,-500.0,0.00013863,2]
[353907422,1740127840918,-500.0,0.00013863,2]
[353907423,1740127840927,-500.0,0.00013863,2]
[353907424,1740127840936,-519.05,0.00013863,2]
[353907425,1740127840945,-500.0,0.00013863,2]
[353907426,1740127840954,-500.0,0.00013863,2]
[353907427,1740127840964,-500.0,0.00013863,2]
[353907428,1740127840973,-500.0,0.00013863,2]
[353907429,1740127840984,-500.0,0.00013863,2]
[353907430,1740127840994,-530.67,0.00013863,2]
[353907431,1740127841003,-500.0,0.00013863,2]
[353907432,1740127841012,-500.0,0.00013863,2]
[353907433,1740127841021,-500.0,0.00013863,2]
[353907434,1740127841030,-3582.22,0.00013863,2]
[353907435,1740127841039,-500.0,0.00013863,2]
[353907436,1740127841048,-750.62,0.00013863,2]
[353907437,1740127841057,-500.0,0.00013863,2]
[353907438,1740127841066,-500.0,0.00013863,2]
[353907439,1740127841075,-500.0,0.00013863,2]
[353907440,1740127841084,-838.22,0.00013863,2]
[353907441,1740127841094,-500.0,0.00013863,2]
[353907442,1740127841103,-500.0,0.00013863,2]
[353907443,1740127841112,-1697.99,0.00013863,2]
[353907444,1740127841121,-4234.78,0.00013863,2]
[353907445,1740127841130,-893.66,0.00013863,2]
[353907446,1740127841139,-978.64,0.00013863,2]
[353907447,1740127841148,-500.0,0.00013863,2]
[353907448,1740127841156,-728.98,0.00013863,2]
[353907449,1740127841166,-1944.34,0.00013863,2]
[353907450,1740127841176,-500.0,0.00013863,2]
[353907451,1740127841185,-500.0,0.00013863,2]
[353907452,1740127841194,-500.0,0.00013863,2]
[353907453,1740127841204,-1119.13,0.00013863,2]
[353907454,1740127841213,-500.0,0.00013863,2]
[353907455,1740127841222,-8546.65,0.00013863,2]
[353907456,1740127841231,-1790.87,0.00013863,2]
[353907457,1740127841240,-503.81,0.00013863,2]
[353907458,1740127841249,-500.0,0.00013863,2]
[353907459,1740127841258,-3281.57,0.00013863,2]
[353907460,1740127841267,-1004.85,0.00013863,2]
[353907461,1740127841280,-526.29,0.00013863,2]
[353907462,1740127841289,-628.65,0.00013863,2]
[353907463,1740127841299,-16024.69,0.00013863,2]
[353907464,1740127841310,-2328.46,0.00013863,2]
[353907465,1740127841322,-500.0,0.00013863,2]
[353907466,1740127841331,-500.0,0.00013863,2]
[353907467,1740127841341,-1690.02,0.00013863,2]
[353907468,1740127841352,-830.91,0.00013863,2]
[353907469,1740127841362,-828.18,0.00013863,2]
[353907470,1740127841371,-984.04,0.00013863,2]
[353907471,1740127841380,-1021.08,0.00013863,2]
[353907472,1740127841389,-574.97,0.00013863,2]
[353907473,1740127841399,-689.34,0.00013863,2]
[353907474,1740127841408,-1733.86,0.00013863,2]
[353907475,1740127841418,-500.0,0.00013863,2]
[353907476,1740127841427,-1095.73,0.00013863,2]
[353907477,1740127841436,-500.0,0.00013863,2]
[353907478,1740127841445,-500.0,0.00013863,2]
[353907479,1740127841454,-500.0,0.00013863,2]
[353907480,1740127841463,-6723.17,0.00013863,2]
[353907481,1740127841472,-500.0,0.00013863,2]
[353907482,1740127841482,-963.38,0.00013863,2]
[353907483,1740127841491,-151.0,0.000139,2]
[353907484,1740127841501,-151.0,0.000139,2]
[353907485,1740127841510,-151.0,0.000139,2]
[353907486,1740127841519,-355.2534587,0.000139,2]
[353907487,1740127841528,-160.0,0.00013909,3]
[353907488,1740127841538,-2481.6844331,0.00013915,2]
[353907489,1740127841547,-8630.71077294,0.00013925,2]
[353907490,1740127841557,-500.0,0.00013944,2]
[353907491,1740127841566,-500.0,0.00013944,2]
[353907492,1740127841576,-500.0,0.00013944,2]
[353907493,1740127841585,-500.0,0.00013944,2]
[353907494,1740127841594,-350.75746811,0.00013944,2]
[353907495,1740127841603,-500.0,0.00013944,2]
[353907496,1740127841612,-282.32860556,0.00013944,2]
[353907497,1740127841622,-500.0,0.00013944,2]
[353907498,1740127841631,-500.0,0.00013944,2]
[353907499,1740127841641,-353.52973595,0.00013944,2]
[353907500,1740127841650,-500.0,0.00013944,2]
[353907501,1740127841660,-213.48803046,0.00013944,2]
[353907502,1740127841669,-500.0,0.00013944,2]
[353907503,1740127841678,-500.0,0.00013944,2]
[353907504,1740127841688,-500.0,0.00013944,2]
[353907505,1740127841697,-500.0,0.00013944,2]
[353907506,1740127841707,-500.0,0.00013944,2]
[353907507,1740127841716,-500.0,0.00013944,2]
[353907508,1740127841726,-439.83173921,0.00013944,2]
[353907509,1740127841735,-500.0,0.00013944,2]
[353907510,1740127841745,-500.0,0.00013944,2]
[353907511,1740127841754,-500.0,0.00013944,2]
[353907512,1740127841764,-500.0,0.00013944,2]
[353907513,1740127841773,-412.23374767,0.00013944,2]
[353907514,1740127841782,-500.0,0.00013944,2]
[353907515,1740127841792,-500.0,0.00013944,2]
[353907516,1740127841801,-500.0,0.00013944,2]
[353907517,1740127841811,-500.0,0.00013944,2]
[353907518,1740127841820,-500.0,0.00013944,2]
[353907519,1740127841829,-225.21151384,0.00013944,2]
[353907520,1740127841838,-500.0,0.00013944,2]
[353907521,1740127841848,-500.0,0.00013944,2]
[353907522,1740127841858,-500.0,0.00013944,2]
[353907523,1740127841868,-500.0,0.00013944,2]
[353907524,1740127841877,-500.0,0.00013944,2]
[353907525,1740127841886,-500.0,0.00013944,2]
[353907526,1740127841896,-500.0,0.00013944,2]
[353907527,1740127841905,-500.0,0.00013944,2]
[353907528,1740127841914,-500.0,0.00013944,2]
[353907529,1740127841924,-500.0,0.00013944,2]
[353907530,1740127841934,-500.0,0.00013944,2]
[353907531,1740127841943,-500.0,0.00013944,2]
[353907532,1740127841952,-500.0,0.00013944,2]
[353907533,1740127841961,-500.0,0.00013944,2]
[353907534,1740127841970,-500.0,0.00013944,2]
[353907535,1740127841980,-500.0,0.00013944,2]
[353907536,1740127841990,-500.0,0.00013944,2]
[353907537,1740127842000,-500.0,0.00013944,2]
[353907538,1740127842009,-500.0,0.00013944,2]
[353907539,1740127842019,-500.0,0.00013944,2]
[353907540,1740127842028,-500.0,0.00013944,2]
[353907541,1740127842038,-500.0,0.00013944,2]
[353907542,1740127842048,-500.0,0.00013944,2]
[353907543,1740127842058,-500.0,0.00013944,2]
[353907544,1740127842067,-500.0,0.00013944,2]
[353907545,1740127842077,-500.0,0.00013944,2]
[353907546,1740127842087,-500.0,0.00013944,2]
[353907547,1740127842096,-509.18981889,0.00013944,2]
[353907548,1740127842105,-500.0,0.00013944,2]
[353907549,1740127842115,-11237.8901707,0.00013945,4]
[353907550,1740127842125,-500.0,0.00013945,2]
[353907551,1740127842134,-500.0,0.00013945,2]
[353907552,1740127842144,-648.26213378,0.00013945,2]
[353907553,1740127842154,-500.0,0.00013945,2]
[353907554,1740127842163,-500.0,0.00013945,2]
[353907555,1740127842173,-500.0,0.00013945,2]
[353907556,1740127842183,-724.4,0.00013945,2]
[353907557,1740127842192,-500.0,0.00013945,2]
[353907558,1740127842202,-500.0,0.00013945,2]
[353907559,1740127842211,-505.07,0.00013945,2]
[353907560,1740127842221,-500.0,0.00013945,2]
[353907561,1740127842230,-500.0,0.00013945,2]
[353907562,1740127842240,-500.0,0.00013945,2]
[353907563,1740127842249,-519.05,0.00013945,2]
[353907564,1740127842258,-500.0,0.00013945,2]
[353907565,1740127842269,-500.0,0.00013945,2]
[353907566,1740127842282,-500.0,0.00013945,2]
[353907567,1740127842291,-500.0,0.00013945,2]
[353907568,1740127842300,-500.0,0.00013945,2]
[353907569,1740127842310,-530.67,0.00013945,2]
[353907570,1740127842320,-500.0,0.00013945,2]
[353907571,1740127842330,-500.0,0.00013945,2]
[353907572,1740127842339,-500.0,0.00013945,2]
[353907573,1740127842349,-3582.22,0.00013945,2]
[353907574,1740127842357,-5000.0,0.00013945,2]
[353907575,1740127842368,-5000.0,0.00013945,2]
[353907576,1740127842377,-5000.0,0.00013945,2]
[353907577,1740127842386,-5000.0,0.00013945,2]
[353907578,1740127842395,-5000.0,0.00013945,2]
[353907579,1740127842404,-5000.0,0.00013945,2]
[353907580,1740127842413,-5000.0,0.00013945,2]
[353907581,1740127842422,-5000.0,0.00013945,2]
[353907582,1740127842431,-5000.0,0.00013945,2]
[353907583,1740127842440,-5000.0,0.00013945,2]
[353907584,1740127842449,-500.0,0.00013945,2]
[353907585,1740127842458,-5000.0,0.00013945,2]
[353907586,1740127842468,-5000.0,0.00013945,2]
[353907587,1740127842477,-5000.0,0.00013945,2]
[353907588,1740127842486,-5000.0,0.00013945,2]
[353907589,1740127842495,-5000.0,0.00013945,2]
[353907590,1740127842503,-5000.0,0.00013945,2]
[353907591,1740127842512,-5000.0,0.00013945,2]
[353907592,1740127842521,-5000.0,0.00013945,2]
[353907593,1740127842531,-5000.0,0.00013945,2]
[353907594,1740127842540,-5000.0,0.00013945,2]
[353907595,1740127842549,-5000.0,0.00013945,2]
[353907596,1740127842558,-5000.0,0.00013945,2]
[353907597,1740127842568,-5000.0,0.00013945,2]
[353907598,1740127842578,-5011.533028,0.00013945,2]
[353907599,1740127842588,-750.62,0.00013945,2]
[353907600,1740127842597,-500.0,0.00013945,2]
[353907601,1740127842606,-500.0,0.00013945,2]
[353907603,1740127842616,-500.0,0.00013945,2]
[353907605,1740127842626,-838.22,0.00013945,2]
[353907606,1740127842635,-500.0,0.00013945,2]
[353907607,1740127842645,-500.0,0.00013945,2]
[353907608,1740127842655,-1697.99,0.00013945,2]
[353907609,1740127842665,-4234.78,0.00013945,2]
[353907610,1740127842674,-893.66,0.00013945,2]
[353907611,1740127842684,-978.64,0.00013945,2]
[353907612,1740127842693,-609.84795924,0.00013945,2]
[353907613,1740127842703,-728.98,0.00013945,2]
[353907614,1740127842712,-1944.34,0.00013945,2]
[353907615,1740127842721,-500.0,0.00013945,2]
[353907616,1740127842731,-562.53035668,0.00013945,2]
[353907617,1740127842741,-500.0,0.00013945,2]
[353907618,1740127842750,-1119.13,0.00013945,2]
[353907619,1740127842760,-500.0,0.00013945,2]
[353907620,1740127842770,-8546.65,0.00013945,2]
[353907622,1740127842780,-1790.87,0.00013945,2]
[353907624,1740127842790,-503.81,0.00013945,2]
[353907626,1740127842799,-500.0,0.00013945,2]
[353907628,1740127842808,-3281.57,0.00013945,2]
[353907631,1740127842818,-1004.85,0.00013945,2]
[353907652,1740127842928,-526.29,0.00013945,2]
[353907655,1740127842939,-628.65,0.00013945,2]
[353907658,1740127842948,-16024.69,0.00013945,2]
[353907660,1740127842959,-2328.46,0.00013945,2]
[353907662,1740127842969,-500.0,0.00013945,2]
[353907664,1740127842979,-500.0,0.00013945,2]
[353907666,1740127842989,-1690.02,0.00013945,2]
[353907668,1740127842999,-830.91,0.00013945,2]
[353907670,1740127843008,-828.18,0.00013945,2]
[353907672,1740127843018,-984.04,0.00013945,2]
[353907675,1740127843027,-1021.08,0.00013945,2]
[353907678,1740127843037,-574.97,0.00013945,2]
[353907680,1740127843046,-689.34,0.00013945,2]
[353907681,1740127843056,-1733.86,0.00013945,2]
[353907683,1740127843065,-500.0,0.00013945,2]
[353907685,1740127843075,-1095.73,0.00013945,2]
[353907687,1740127843084,-500.0,0.00013945,2]
[353907689,1740127843093,-500.0,0.00013945,2]
[353907691,1740127843102,-500.0,0.00013945,2]
[353907693,1740127843112,-6723.17,0.00013945,2]
[353907695,1740127843121,-500.0,0.00013945,2]
[353907698,1740127843130,-963.38,0.00013945,2]
[353907700,1740127843139,-501.3968598,0.00013973,2]
[353907703,1740127843149,-279.99377584,0.00013973,2]
[353907706,1740127843158,-517.12891589,0.00013973,2]
[353907708,1740127843167,-502.16312422,0.00013973,2]
[353907710,1740127843177,-500.0,0.00013973,2]
[353907712,1740127843187,-500.0,0.00013973,2]
[353907713,1740127843197,-151.0,0.00014,2]
[353907714,1740127843206,-151.0,0.00014,2]
[353907715,1740127843216,-1000.0,0.00014,4]
[353907716,1740127843226,-500.0,0.00014027,2]
[353907718,1740127843235,-500.0,0.00014027,2]
[353907720,1740127843244,-500.0,0.00014027,2]
[353907722,1740127843254,-500.0,0.00014027,2]
[353907724,1740127843263,-500.0,0.00014027,2]
[353907726,1740127843274,-724.4,0.00014027,2]
[353907728,1740127843285,-500.0,0.00014027,2]
[353907730,1740127843295,-500.0,0.00014027,2]
[353907732,1740127843305,-505.07,0.00014027,2]
[353907734,1740127843315,-500.0,0.00014027,2]
[353907736,1740127843324,-500.0,0.00014027,2]
[353907738,1740127843334,-500.0,0.00014027,2]
[353907741,1740127843343,-519.05,0.00014027,2]
[353907743,1740127843353,-500.0,0.00014027,2]
[353907745,1740127843363,-500.0,0.00014027,2]
[353907747,1740127843373,-500.0,0.00014027,2]
[353907749,1740127843383,-500.0,0.00014027,2]
[353907750,1740127843392,-500.0,0.00014027,2]
[353907751,1740127843402,-530.67,0.00014027,2]
[353907752,1740127843411,-500.0,0.00014027,2]
[353907753,1740127843420,-500.0,0.00014027,2]
[353907754,1740127843429,-3582.22,0.00014027,2]
[353907755,1740127843439,-500.0,0.00014027,2]
[353907756,1740127843447,-750.62,0.00014027,2]
[353907757,1740127843457,-500.0,0.00014027,2]
[353907758,1740127843466,-500.0,0.00014027,2]
[353907759,1740127843476,-500.0,0.00014027,2]
[353907760,1740127843486,-838.22,0.00014027,2]
[353907761,1740127843495,-511.89918106,0.00014027,2]
[353907762,1740127843504,-500.0,0.00014027,2]
[353907763,1740127843514,-1697.99,0.00014027,2]
[353907764,1740127843523,-4234.78,0.00014027,2]
[353907765,1740127843532,-893.66,0.00014027,2]
[353907766,1740127843541,-978.64,0.00014027,2]
[353907767,1740127843551,-728.98,0.00014027,2]
[353907768,1740127843560,-1944.34,0.00014027,2]
[353907769,1740127843569,-500.0,0.00014027,2]
[353907770,1740127843578,-500.0,0.00014027,2]
[353907771,1740127843587,-1119.13,0.00014027,2]
[353907772,1740127843596,-500.0,0.00014027,2]
[353907773,1740127843606,-8546.65,0.00014027,2]
[353907774,1740127843615,-1790.87,0.00014027,2]
[353907775,1740127843624,-503.81,0.00014027,2]
[353907776,1740127843634,-500.0,0.00014027,2]
[353907777,1740127843643,-3281.57,0.00014027,2]
[353907778,1740127843653,-1004.85,0.00014027,2]
[353907779,1740127843663,-526.29,0.00014027,2]
[353907780,1740127843673,-628.65,0.00014027,2]
[353907781,1740127843682,-16024.69,0.00014027,2]
[353907782,1740127843692,-2328.46,0.00014027,2]
[353907783,1740127843701,-500.0,0.00014027,2]
[353907784,1740127843710,-500.0,0.00014027,2]
[353907785,1740127843719,-1690.02,0.00014027,2]
[353907786,1740127843728,-830.91,0.00014027,2]
[353907787,1740127843738,-828.18,0.00014027,2]
[353907788,1740127843747,-1021.08,0.00014027,2]
[353907789,1740127843757,-984.04,0.00014027,2]
[353907790,1740127843766,-574.97,0.00014027,2]
[353907791,1740127843775,-689.34,0.00014027,2]
[353907792,1740127843785,-1733.86,0.00014027,2]
[353907793,1740127843794,-500.0,0.00014027,2]
[353907794,1740127843803,-1095.73,0.00014027,2]
[353907795,1740127843813,-500.0,0.00014027,2]
[353907796,1740127843822,-500.0,0.00014027,2]
[353907797,1740127843840,-500.0,0.00014027,2]
[353907798,1740127843850,-6723.17,0.00014027,2]
[353907799,1740127843859,-500.0,0.00014027,2]
[353907800,1740127843868,-963.38,0.00014027,2]
[353907801,1740127843878,-500.0,0.00014073,2]
[353907802,1740127843887,-557.1188801,0.00014082,2]
[353907803,1740127843897,-1002.0,0.000141,2]
[353907804,1740127843906,-151.0,0.000141,2]
[353907805,1740127843915,-151.0,0.000141,2]
[353907806,1740127843924,-171.37822153,0.000141,2]
[353907807,1740127843933,-171.37822153,0.000141,2]
[353907808,1740127843942,-171.37822153,0.000141,2]
[353907809,1740127843951,-171.37822153,0.000141,2]
[353907810,1740127843960,-171.37822153,0.000141,2]
[353907811,1740127843970,-171.37822153,0.000141,2]
[353907812,1740127843980,-171.37,0.000141,2]
[353907813,1740127843989,-155.50986769,0.000141,2]
[353907814,1740127843998,-155.50986769,0.000141,2]
[353907815,1740127844007,-155.50986769,0.000141,2]
[353907816,1740127844017,-155.50986769,0.000141,2]
[353907817,1740127844026,-155.50986769,0.000141,2]
[353907818,1740127844035,-155.50986769,0.000141,2]
[353907819,1740127844044,-155.50986769,0.000141,2]
[353907820,1740127844053,-155.50986769,0.000141,2]
[353907821,1740127844062,-155.50986769,0.000141,2]
[353907822,1740127844071,-155.50986769,0.000141,2]
[353907823,1740127844079,-155.50986769,0.000141,2]
[353907824,1740127844088,-155.50986769,0.000141,2]
[353907825,1740127844097,-155.50986769,0.000141,2]
[353907826,1740127844106,-155.50986769,0.000141,2]
[353907827,1740127844114,-155.50986769,0.000141,2]
[353907828,1740127844123,-155.50986769,0.000141,2]
[353907829,1740127844132,-155.50986769,0.000141,2]
[353907830,1740127844142,-155.5,0.000141,2]
[353907831,1740127844150,-170.1942033,0.000141,2]
[353907832,1740127844159,-170.1942033,0.000141,2]
[353907833,1740127844168,-170.1942033,0.000141,2]
[353907834,1740127844177,-170.1942033,0.000141,2]
[353907835,1740127844186,-170.1942033,0.000141,2]
[353907836,1740127844195,-170.19,0.000141,2]
[353907837,1740127844204,-158.84792308,0.000141,2]
[353907838,1740127844214,-158.84792308,0.000141,2]
[353907839,1740127844223,-158.84792308,0.000141,2]
[353907840,1740127844232,-158.84792308,0.000141,2]
[353907841,1740127844241,-158.84792308,0.000141,2]
[353907842,1740127844250,-158.84792308,0.000141,2]
[353907843,1740127844258,-158.84792308,0.000141,2]
[353907844,1740127844268,-158.84792308,0.000141,2]
[353907845,1740127844281,-158.84792308,0.000141,2]
[353907846,1740127844290,-158.84792308,0.000141,2]